Cogmind - Beta 16.1 @@@ ROGUE MODE // 2026.02.14 @ 14:21:40 Player: Lintence Result: Self-destructed Performance ------------- Evolutions (1) 500 Regions Visited (2) 400 Robots Destroyed (20) 100 Value Destroyed (446) 446 Prototype IDs (0) 0 Alien Tech Used (0) 0 Bonus (0) 0 TOTAL SCORE: 1446 Bonus ------- None Cogmind --------- Core Integrity 302/400 Matter 271/300 Energy 265/265 System Corruption 0% Temperature Cool (29) Movement Walking (175) Ox1 Location -9/Materials Parts ------- > --- POWER (1) -------- Improved Ion Engine > --- PROPULSION (2) --- Aluminum Leg Aluminum Leg > --- UTILITY (4) ------ Heat Sink Small Storage Unit Structural Scanner Light Armor Plating > --- WEAPON (2) ------- Spread Laser Spread Laser > --- INVENTORY (8) ---- Ion Engine Aluminum Leg Hover Unit Improved Light Cannon Improved Light Cannon Improved Light Cannon Improved Light Cannon Peak State ------------ > --- POWER ------------ Improved Ion Engine > --- PROPULSION ------- Aluminum Leg Aluminum Leg > --- UTILITY ---------- Heat Sink Small Storage Unit Structural Scanner Light Armor Plating > --- WEAPON ----------- Improved Light Cannon Improved Light Cannon > --- INVENTORY -------- Ion Engine Aluminum Leg Hover Unit Spread Laser Spread Laser Improved Light Cannon Improved Light Cannon [Rating: 13] Favorites ----------- Power Ion Engine Engine Ion Engine Propulsion Aluminum Leg Leg Aluminum Leg Utility Small Storage Unit Device Structural Scanner Storage Small Storage Unit Protection Light Armor Plating Weapon Improved Light Cannon Energy Gun EM Pulse Gun Ballistic Gun Assault Rifle Ballistic Cannon Improved Light Cannon Build | -11 -10 -9 ------- Run | Yrd Mat Mat Slots Evolved 2 | . . 2 Power . | . . . Propulsion . | . . . Utility 2 | . . 2 Weapon . | . . . Parts Attached 18 | 6 1 11 Power 2 | 1 . 1 Engine 2 | 1 . 1 Core . | . . . Reactor . | . . . Propulsion 4 | 2 . 2 Treads . | . . . Leg 4 | 2 . 2 Wheel . | . . . Hover . | . . . Flight . | . . . Utility 4 | 1 1 2 Device 2 | . 1 1 Storage 1 | 1 . . Processor . | . . . Hackware . | . . . Protection 1 | . . 1 Artifact . | . . . Weapon 8 | 2 . 6 Energy Gun 5 | 1 . 4 Energy Cannon . | . . . Ballistic Gun 1 | 1 . . Ballistic Cannon 2 | . . 2 Launcher . | . . . Special Weapon . | . . . Impact Weapon . | . . . Slashing Weapon . | . . . Piercing Weapon . | . . . Special Melee Weapon . | . . . Unidentified Prototypes . | . . . Parts Lost . | . . . Power . | . . . Propulsion . | . . . Utility . | . . . Weapon . | . . . Highest Loss Streak . | . . . To Critical Strikes . | . . . Average Backups 5 | . 2 6 Power 1 | . 1 1 Propulsion . | . . . Utility . | . . . Weapon 3 | . 1 4 Tool/Special . | . . . Unused Backups 9 | . . 9 Power 2 | . . 2 Propulsion 3 | . . 3 Utility . | . . . Weapon 4 | . . 4 Tool/Special . | . . . Average Slot Usage (%) 84 | . 95 81 Engine 11 | . 14 11 Leg 23 | . 28 22 Device 11 | . 9 12 Storage 11 | . 14 11 Protection 2 | . . 3 Energy Gun 7 | . 14 5 Ballistic Gun 4 | . 14 1 Ballistic Cannon 10 | . . 14 Peak Build Rating 13 | 6 7 13 Average Rating 8 | 4 6 10 On Entrance 4 | . 6 7 Avg Prop Armor Cover (%) . | . . . Naked Turns . | . . . Heaviest Build 25 | 14 15 25 Greatest Support 20 | 20 20 20 Greatest Overweight (x) 3 | 3 . 1 Average Overweight (x) . | . . . Largest Inventory Capacity 8 | 8 8 8 Average Capacity 7 | 7 8 8 Most Carried 8 | 2 3 8 Average Carried 5 | . 2 6 Final Capacity 8 | 8 8 8 Final Carried 7 | 2 3 7 Class Distribution -------------------- 76% | Mutant 23% | Scavenger-Mutant Dominant Class ---------------- Mutant | -10/Materials Mutant | -9/Materials Resources | -11 -10 -9 ----------- Run | Yrd Mat Mat Matter Collected 574 | 214 58 302 Remotely . | . . . Salvage Created 474 | . 112 362 Parts 42 | . 9 33 Haulers Intercepted 2 | . 1 1 Recyclers Shooed . | . . . Parts Field Recycled . | . . . Retrieved Matter . | . . . Parts Self-Destructed . | . . . Prevented . | . . . Parts Restored . | . . . Kills | -11 -10 -9 ------- Run | Yrd Mat Mat Combat Hostiles Destroyed 15 | . . 15 Guns 7 | . . 7 Cannons 8 | . . 8 Classes Destroyed 7 | . 3 4 Builder 1 | . 1 . Hauler 2 | . 1 1 Mechanic 1 | . 1 . Watcher 1 | . . 1 Swarmer 7 | . . 7 Grunt 5 | . . 5 Sentry 3 | . . 3 Best Kill Streak 5 | . 2 5 Combat Bots Only 5 | . . 5 Max Kills in Single Turn 2 | . 1 2 Gunslinging . | . . . Exploded . | . . . Melee . | . . . Uniques/NPCs Destroyed . | . . . Combat | -11 -10 -9 -------- Run | Yrd Mat Mat Hostile Shots Fired 51 | . . 51 Missed 17 | . . 17 Hits 34 | . . 34 Melee 4 | . . 4 Projectile 30 | . . 30 Critical Strikes 1 | . . 1 Damage Taken 422 | . . 422 Core 98 | . . 98 Absorbed by Shields . | . . . Core Remaining (%) 100 | 100 100 . Volleys Fired 43 | . 8 35 Largest 2 | . 2 2 Hottest 130 | . 60 130 Shots Fired 86 | . 16 70 Gun 34 | . 16 18 Cannon 52 | . . 52 Launcher . | . . . Special . | . . . Kinetic 60 | . 8 52 Thermal 18 | . . 18 Explosive . | . . . Electromagnetic 8 | . 8 . Robot Hit Streak 10 | . 8 10 Robot Miss Streak 5 | . 1 5 Penetration Max . | . . . Secondary Targets . | . . . Shots Hit Robots 62 | . 12 50 Core Hits 36 | . 5 31 Critical Kills . | . . . Critical Parts Destroyed . | . . . Critical Strikes 6 | . 1 5 Blast 5 | . . 5 Corrupt 1 | . 1 . Melee Attacks . | . . . Impact . | . . . Slashing . | . . . Piercing . | . . . Sneak Attacks . | . . . Combat Hostiles . | . . . Follow-up Attacks . | . . . Damage Inflicted 1120 | . 150 970 Guns 377 | . 150 227 Cannons 738 | . . 738 Explosions . | . . . Melee . | . . . Ramming 5 | . . 5 Kinetic 814 | . 76 738 Thermal 227 | . . 227 Explosive . | . . . Electromagnetic 74 | . 74 . Impact . | . . . Slashing . | . . . Piercing . | . . . Highest Corruption . | . . . Average Corruption . | . . . Corruption Purged . | . . . Corruption Blocked . | . . . Overload Shots . | . . . Overflow Damage . | . . . Projectiles . | . . . Explosions . | . . . Melee . | . . . Knockbacks 5 | . . 5 Impact . | . . . Kinetic 5 | . . 5 Secondary . | . . . Self-Inflicted Damage . | . . . Shots . | . . . Rammed . | . . . Targets Rammed 2 | . . 2 Kicked 2 | . . 2 Crushed . | . . . Highest Temperature 300 | . . 300 Average Temperature 83 | . . 83 Received Heat Transfer 84 | . . 84 Siege Activations . | . . . Martial Activations . | . . . Shielding Activations . | . . . Robots Disrupted . | . . . Combat Hostiles . | . . . Robots Corrupted . | . . . Combat Hostiles . | . . . Parts Fried . | . . . Impact Corruptions . | . . . Robots Melted . | . . . Combat Hostiles . | . . . Parts Melted . | . . . Heat Transferred 270 | . . 270 Parts Sabotaged . | . . . Parts Stolen . | . . . Parts Stripped . | . . . Power Chain Reactions . | . . . Alert | -11 -10 -9 ------- Run | Yrd Mat Mat Maximum Alert Level 1 | . . 1 Low Security (%) 97 | 100 100 95 Level 1 2 | . . 4 Level 2 . | . . . Level 3 . | . . . Level 4 . | . . . Level 5 . | . . . High Security . | . . . Max Security . | . . . Peak Influence 258 | . 7 258 Initial . | . . . Average 52 | . 1 78 Influence Increases 461 | . 17 444 Destroy 0b10 Robot/C 300 | . . 300 Destroy 0b10 Robot/NC 25 | . 15 10 Destroy Leader 66 | . 2 64 Successful Hack 8 | . . 8 Disable Machine 30 | . . 30 Destroy Structure 2 | . . 2 Lose Combat Pursuer 30 | . . 30 Influence Decreases 203 | . 17 186 Time Decay 203 | . 17 186 Squads Dispatched . | . . . Investigation . | . . . Extermination . | . . . Reinforcement . | . . . Assault . | . . . Garrison . | . . . Intercept . | . . . Searches Triggered . | . . . Construction Impeded . | . . . Haulers Reinforced . | . . . Active Scanning Responses . | . . . Cargo Convoy Interrupts . | . . . Stealth | -11 -10 -9 --------- Run | Yrd Mat Mat Distress Signals 2 | . . 2 Communications Jammed . | . . . Distress Signals . | . . . Times Spotted 24 | . 2 22 Peak Tracking Total 5 | . 1 5 Tactical Retreats 2 | . . 2 Traps | -11 -10 -9 ------- Run | Yrd Mat Mat Traps Triggered . | . . . Indirectly . | . . . Trap Hack Attempts . | . . . Triggered . | . . . Disarmed . | . . . Reprogrammed . | . . . Reused . | . . . Traps Extracted . | . . . Installed . | . . . Triggered . | . . . Machines | -11 -10 -9 ---------- Run | Yrd Mat Mat Machines Disabled 2 | . . 2 Max in Single Turn 1 | . . 1 Machines Repaired . | . . . Machines Dismantled . | . . . Machines Sabotaged . | . . . Overloaded Fab Kills . | . . . Hacking | -11 -10 -9 --------- Run | Yrd Mat Mat Machines Accessed 2 | . . 2 Terminals 1 | . . 1 Fabricators . | . . . Repair Stations . | . . . Recycling Units . | . . . Scanalyzers 1 | . . 1 Garrison Access . | . . . Total Hacks 7 | . . 7 Successful 4 | . . 4 Failed 2 | . . 2 Catastrophic . | . . . Database Lockouts 1 | . . 1 Manual 3 | . . 3 Terminals 3 | . . 3 Fabricators . | . . . Repair Stations . | . . . Recycling Units . | . . . Scanalyzers 4 | . . 4 Garrison Access . | . . . Terminal Hacks 1 | . . 1 Registered Components 1 | . . 1 Fabricator Hacks . | . . . Repair Station Hacks . | . . . Recycling Unit Hacks . | . . . Scanalyzer 3 | . . 3 Retrieve Study 3 | . . 3 Garrison Access Hacks . | . . . Unauthorized Hacks . | . . . Terminals . | . . . Fabricators . | . . . Repair Stations . | . . . Recycling Units . | . . . Scanalyzers . | . . . Garrison Access . | . . . Data Cores Recovered . | . . . Used . | . . . Hacking Detections 1 | . . 1 Full Trace Events . | . . . Feedback Events . | . . . Feedback Blocked . | . . . Robot Schematics Acquired . | . . . Robots Built . | . . . Authchips . | . . . Time . | . . . Total Robot Build Rating . | . . . Part Schematics Acquired . | . . . Parts Built . | . . . Authchips . | . . . Time . | . . . Total Part Build Rating . | . . . Part Studies Acquired 3 | . . 3 Parts Repaired . | . . . Time . | . . . Parts Recycled . | . . . Recycled Matter . | . . . Retrieved Matter . | . . . Retrieved Components . | . . . Parts Scanalyzed . | . . . Part Schematics Acquired . | . . . Parts Damaged . | . . . Bothacking | -11 -10 -9 ------------ Run | Yrd Mat Mat Used RIF Installer . | . . . Robots Hacked . | . . . Non-combat . | . . . Combat . | . . . Robot Hacks Applied . | . . . Relay Couplers Released . | . . . Fabnet Peak Effective % . | . . . Robots Rewired . | . . . Allies Hacked . | . . . Hacks Repelled . | . . . Allies | -11 -10 -9 -------- Run | Yrd Mat Mat Total Allies . | . . . Largest Group . | . . . Highest-Rated Group . | . . . Highest-Rated Ally . | . . . Total Orders . | . . . Ally Attacks . | . . . Total Damage . | . . . Kills . | . . . Allies Corrupted . | . . . Allies Melted . | . . . Intel | -11 -10 -9 ------- Run | Yrd Mat Mat Active Infowar (turns) 529 | . 114 415 Structural 529 | . 114 415 Robot Analysis Total . | . . . Derelict Logs Recovered . | . . . Drone Launches . | . . . Drone Recoveries . | . . . Exploration | -11 -10 -9 ------------- Run | Yrd Mat Mat Turns Passed 618 | 50 153 415 Spaces Moved 338 | 31 106 201 Core 10 | 10 . . Treads . | . . . Legs 328 | 21 106 201 Wheels . | . . . Hover . | . . . Flight . | . . . Fastest Speed 50 | 50 120 120 Average Speed 127 | 124 120 132 Slowest Speed 200 | 200 120 190 Overloaded Moves . | . . . Propulsion Burnouts . | . . . Robots Hopped . | . . . Potential Cave-ins . | . . . Cave-ins Triggered . | . . . Exploration Rate (%) 22 | 4 31 32 Regions Visited 2 Branch Regions . Pre-discovered Areas . | . . . Known Exits Taken . | . . . Unknown Exits Taken 2 | 1 1 . Scrap Searched . | . . . Spaces Dug . | . . . Terrain Destroyed . | . . . Melee . | . . . Projectile . | . . . AOE . | . . . Terrain Rammed . | . . . Walls Destroyed . | . . . Machines Disabled . | . . . Actions | -11 -10 -9 --------- Run | Yrd Mat Mat Total 434 | 39 115 280 Wait 7 | 1 . 6 Move 336 | 30 105 201 Hop . | . . . Pick Up 15 | 2 1 12 Fast Attach 11 | 6 1 4 Attach . | . . . Detach . | . . . Swap 7 | . . 7 Drop 13 | . . 13 Fire 43 | . 8 35 Melee . | . . . Ram . | . . . Kick 2 | . . 2 Crush . | . . . Escape Stasis . | . . . Rewire . | . . . Trap . | . . . Miscellaneous . | . . . Route ------- -11/Scrapyard -10/Materials -9/Materials History --------- Turn | Location | Event 16 | -11/Scrapyard | Discovered new exit (range 14) 51 | -11/Scrapyard | Entered Materials 184 | -10/Materials | Discovered new exit (range 16) 204 | -10/Materials | Entered another Materials area 204 | -9/Materials | Evolved 2 slots: Utility x2 343 | -9/Materials | Build established: Mutant 536 | -9/Materials | Central database locked down 619 | -9/Materials | Self-destructed Last Messages --------------- 00588_ Acquired 27 matter. 00589_ K-01 Serf collects debris. 00590_ Kicked U-05 Engineer out of the way. 00591_ Acquired 40 matter. 00592_ Kicked R-06 Scavenger out of the way. 00592_ R-06 Scavenger sends out distress signal. 00594_ Acquired 2 matter. 00597_ K-01 Serf collects debris. 00597_ C-30 ARC bursts open, deploying its payload. 00597_ S-10 Pest unfolds itself. 00597_ K-01 Serf collects debris. 00602_ S-10 Pest destroyed. 00604_ K-01 Serf collects debris. 00605_ S-10 Pest destroyed. 00611_ A-02 Transporter destroyed. 00614_ Acquired 5 matter. 00615_ K-01 Serf collects debris. 00617_ Acquired 35 matter. 00618_ K-01 Serf collects debris. Map ----- +----------------------------------------------------+ | ?????????????????????????????????????????????????? | | ?????????????????????????????????????????????????? | | ?????????????????????????????????????????????????? | | ?????????????????????????????????????????????????? | | ?????????????????????????????????????????????????? | | ?????????????????????????????????????????????????? | | ?????????????????????????????????????????????????? | | ???????????????????????????????!?????????????????? | | ?????????????????????????????????????????????????? | | ?????????????????????????????????????????????????? | | ????????????????????????? ??????????????????????!? | | ????????????????????????? ???????????????????????? | | ?????????????????????????u???????????????????????? | | ????????????????????????? ???????????????????????? | | ?????????????????????????u???????????????????????? | | ?????????????????? ?????? ???????????????????????? | | ?????????????????? ????##w/ ?????????????????????? | | ????????????????## # ?? #Y# ?????????????????????? | | ????????########## # ?? # # ?????????????????????? | | ????????########## # ?? # # ?????????????????????? | | ????????## ### # ?? #k# ?????????????????????? | | ????????## ] ### # ?? + #######????????????????? | | ????????## ### # ?? #!#### # ????????????????? | | ########## ### # ?? #w# # ????????????????? | | ########## ?## # ?? #=+ "" # ????????????????? | | ##? ### # #@# Y" # ????????????????? | | ## ### #### #*# "" # ????????????????? | | ####+###% #### # # ????????????????? | | # %####=# [[[# ????????????????? | | + [ !% %[=+=[[[##????????????????? | | # * ####k#%[[[##????????????????? | | ### #### |*%=####%#* ##????????????????? | | ###+##### #####+#######????????????????? | | ## ## ## ^% %%#####??????????/?????? | | ######+###?????## ## ^ "" ##????????????????? | | ###### ###?????## ##% ""%[%""##????????????????? | | ????## ##??????## ## ^"""*=S"##????????????????? | | ????## ##?????"## ##% """ #### ????????????????? | | ????## ##????? ## ## #### ????????????????? | | ????## ### # ###/####### ????????????????? | | ????## ######+## = * # ????????????????? | | ????## + ????????????????? | | ????## % # ????????????????? | | ????## "" # ????????????????? | | ????## """ """ """ "" # ????????????????? | | ###### """ """ """ T" # ????????????????? | | ###### """ """ """ "" ##????????????????? | | ## """ """ """ "" ##????????????????? | | ## ##????????????????? | | ## ##????????????????? | +----------------------------------------------------+ Best States ------------- Heat Dissipation 38 Energy Generation 12 Energy Capacity 265 Matter Stores 300 Matter Capacity 300 Sight Range 16 Terrain Scan Density 10 Armor Coverage 150 Evasion (%) 55 Item Schematics ----------------- None Robot Schematics ------------------ None Fabricated ------------ Nothing Repaired ---------- Nothing Studied --------- Hover Unit | -9/Materials | Hacked Imp. Light Cannon | -9/Materials | Hacked Aluminum Leg | -9/Materials | Hacked Alien Tech Used ----------------- None Achievements -------------- None Challenges ------------ None Game ------ Seed NuclearXenonInsulator Manual? 0 Play Time 00:10:30 Cumulative 76.0 hours Start 2026.02.14 @ 14:12:58 End 2026.02.14 @ 14:21:40 Sessions 1 Manual Loads 0 Difficulty Rogue Special Mode None Game No. 143 Rogue 143 Adventurer 0 Explorer 0 Win Type - Total 1 Types 1/0/0/0/0/0/0/0/0/0 Lore% 25 Gallery% 34 Achievement% 25 Wizard Run 0 Options --------- Layout 1 ASCII 0 Keyboard 0 Movement Mouse Keybinds 0 Fullscreen 2 Font 20/X11 Map View 50x35 Zoom Use 0% Tactical HUD 1 Map Filters NONE Filters NONE Steam 1 RUN: a98d65c9-1389-4ab8-a605-b38fa18e4051